bitfinex-derivatives/quotes_BTCF0:USTF0_20250814
["timestamp","ask_amount","ask_price","bid_price","bid_amount"]
[1755174024951,1.47661421,120730.0,120720.0,0.007]
[1755174025255,1.47661421,120730.0,120720.0,0.03189]
[1755174026758,1.47661421,120730.0,120720.0,0.12841]
[1755174027855,0.78839338,120730.0,120720.0,0.2112074]
[1755174028051,0.87118728,120730.0,120720.0,0.2112074]
[1755174028251,0.78839338,120730.0,120720.0,0.2112103]
[1755174028558,0.42759338,120730.0,120720.0,0.12921]
[1755174029260,0.42759338,120730.0,120720.0,0.69872296]
[1755174029261,0.3608,120730.0,120720.0,0.69872296]
[1755174029458,0.3608,120730.0,120720.0,1.06438695]
[1755174029659,0.3608,120730.0,120720.0,1.37071379]
[1755174030062,0.42572693,120740.0,120720.0,1.53630769]
[1755174030357,0.3608,120740.0,120730.0,0.12141]
[1755174031152,0.3608,120740.0,120730.0,0.91389]
[1755174031364,0.4435877,120740.0,120730.0,0.91389]
[1755174031552,0.4773377,120740.0,120730.0,0.91389]
[1755174032160,0.4773377,120740.0,120730.0,0.91589]
[1755174032361,0.4773377,120740.0,120730.0,0.91789]
[1755174032550,0.3608,120740.0,120730.0,1.0006845]
[1755174032757,0.3608,120740.0,120730.0,0.2082041]
[1755174033050,0.3608,120740.0,120730.0,1.0000841]
[1755174033659,0.3608,120740.0,120730.0,0.2082041]
[1755174033955,0.3608,120740.0,120730.0,0.9996441]
[1755174034557,0.3608,120740.0,120730.0,1.0080401]
[1755174035566,0.3608,120740.0,120730.0,0.9996441]
[1755174035763,0.3608,120740.0,120730.0,0.91685]
[1755174036463,0.3608,120740.0,120730.0,0.9996441]
[1755174036764,0.3608,120740.0,120730.0,0.91685]
[1755174037761,1.01637046,120740.0,120730.0,0.84451]
[1755174038061,0.0828079,120710.0,120700.0,0.12141]
[1755174038254,0.5518379,120710.0,120700.0,1.01593365]
[1755174038449,0.5518379,120710.0,120700.0,0.22533365]
[1755174038664,0.5518379,120710.0,120700.0,0.91193]
[1755174038965,0.46903,120710.0,120700.0,0.91193]
[1755174039262,0.5518379,120710.0,120700.0,0.91193]
[1755174039565,0.5518379,120710.0,120700.0,0.91681]
[1755174040365,0.46903,120710.0,120700.0,0.92081]
[1755174041462,0.46903,120710.0,120700.0,1.0036247]
[1755174041764,0.44607,120710.0,120700.0,1.0036247]
[1755174041957,0.43307,120710.0,120700.0,1.0036247]
[1755174042161,0.3608,120710.0,120700.0,1.0036247]
[1755174042850,0.39455,120720.0,120710.0,0.0828079]
[1755174043057,0.44607,120730.0,120720.0,0.204211]
[1755174043359,0.39932,120730.0,120720.0,1.47980416]
[1755174043662,0.3608,120730.0,120720.0,1.55406594]
[1755174043857,0.3608,120730.0,120720.0,0.76526594]
[1755174044062,0.3608,120730.0,120720.0,1.55414594]
[1755174044266,0.48609924,120740.0,120730.0,0.2042041]
[1755174045164,0.46313924,120740.0,120730.0,0.2042041]
[1755174045357,0.46313924,120740.0,120730.0,0.9928041]
[1755174045757,0.48609924,120740.0,120730.0,0.9928041]
[1755174046062,0.48609924,120740.0,120730.0,1.06714588]
[1755174046463,0.48609924,120740.0,120730.0,1.07014588]
[1755174047060,0.48609924,120740.0,120730.0,0.9958041]
[1755174047962,0.48609924,120740.0,120730.0,0.2072041]
[1755174048158,0.48609924,120740.0,120730.0,0.91217]
[1755174048569,1.0555997,120740.0,120730.0,0.79988]
[1755174048770,1.0555997,120740.0,120730.0,0.89008]
[1755174048970,1.0555997,120740.0,120730.0,0.91217]
[1755174049171,0.56888654,120740.0,120730.0,0.91217]
[1755174049474,1.0555997,120740.0,120730.0,0.91217]
[1755174049657,0.56888654,120740.0,120730.0,0.91217]
[1755174051469,0.56888654,120740.0,120730.0,0.12441]
[1755174051663,0.56888654,120740.0,120730.0,0.91385]
[1755174054773,0.56888654,120740.0,120730.0,0.98819178]
[1755174055274,1.0555997,120740.0,120730.0,0.98819178]
[1755174055976,1.03853046,120740.0,120730.0,0.98819178]
[1755174056176,0.5518173,120740.0,120730.0,0.98819178]
[1755174057975,1.03853046,120740.0,120730.0,0.98819178]
[1755174059379,0.2484394,120710.0,120690.0,0.21385397]
[1755174059577,0.2484394,120710.0,120690.0,1.00117397]
[1755174059578,1.29112786,120700.0,120690.0,1.00117397]
[1755174059773,1.29112786,120700.0,120690.0,0.85009608]
[1755174060076,1.29112786,120700.0,120690.0,0.05068392]
[1755174060380,0.8044147,120700.0,120690.0,0.14638392]
[1755174060573,0.8044147,120700.0,120690.0,0.92535608]
[1755174061081,0.8044147,120700.0,120690.0,0.13743608]
[1755174061275,1.29944067,120700.0,120690.0,0.13743608]
[1755174061479,0.8044147,120700.0,120690.0,0.13743608]
[1755174061782,0.7216,120700.0,120690.0,0.22025768]
[1755174061982,0.7216,120700.0,120690.0,1.01117768]
[1755174062279,1.29112786,120700.0,120690.0,0.04073608]
[1755174062479,1.29112786,120700.0,120690.0,0.04573608]
[1755174062772,1.29112786,120700.0,120690.0,0.07928608]
[1755174062973,1.29112786,120700.0,120690.0,0.04673608]
[1755174063881,1.29112786,120700.0,120690.0,0.05968378]
[1755174064375,0.0828353,120670.0,120660.0,8e-05]
[1755174064581,1.29114846,120670.0,120660.0,8e-05]
[1755174064769,1.29114846,120670.0,120660.0,0.02385]
[1755174065379,1.582845,120660.0,120650.0,0.02377]
[1755174065576,2.01032067,120660.0,120650.0,0.02377]
[1755174065883,2.49703383,120660.0,120650.0,0.11947]
[1755174066180,2.01032067,120660.0,120650.0,0.11947]
[1755174066581,1.92747967,120660.0,120650.0,0.12447]
[1755174066774,2.41419283,120660.0,120650.0,0.13047]
[1755174067081,1.92747967,120660.0,120650.0,0.13047]
[1755174067277,1.92747967,120660.0,120650.0,0.2133163]
[1755174067576,1.92747967,120660.0,120650.0,1.0050363]
[1755174067779,1.92747967,120660.0,120650.0,1.0050763]
[1755174070282,1.92747967,120660.0,120650.0,0.2133161]
[1755174070482,2.41419283,120660.0,120650.0,0.2133161]
[1755174070874,1.8608,120660.0,120650.0,1.0040361]
[1755174071081,1.8608,120660.0,120650.0,0.2133161]
[1755174071282,1.8608,120660.0,120650.0,0.92119]
[1755174071474,2.34751316,120660.0,120650.0,0.13047]
[1755174071680,2.34751316,120660.0,120650.0,0.2133155]
[1755174071977,2.34751316,120660.0,120650.0,1.0038355]
[1755174072785,2.34751316,120660.0,120650.0,0.92099]
[1755174072979,2.34751316,120660.0,120650.0,0.92083]
[1755174073182,1.8608,120660.0,120650.0,0.92083]
[1755174073492,2.43035176,120660.0,120650.0,0.87414]
[1755174073687,2.34751316,120660.0,120650.0,0.9895354]
[1755174073888,2.34751316,120660.0,120650.0,0.92103]
[1755174074091,3.28689189,120660.0,120650.0,0.011]
[1755174074278,1.78609189,120660.0,120650.0,0.011]
[1755174075182,1.78689189,120660.0,120650.0,0.011]
[1755174075584,1.16241189,120660.0,120650.0,0.011]
[1755174075789,1.95229189,120660.0,120650.0,0.011]
[1755174076387,1.95229189,120660.0,120650.0,0.02395202]
[1755174076594,1.78653189,120660.0,120650.0,0.02395202]
[1755174076890,1.78561189,120660.0,120650.0,0.02395202]
[1755174077097,1.78561189,120660.0,120650.0,0.04772202]
[1755174078001,0.99585189,120660.0,120650.0,0.04772202]
[1755174079892,0.99585189,120660.0,120650.0,0.02395202]
[1755174080401,1.78441189,120660.0,120650.0,0.02395202]
[1755174080698,1.78429189,120660.0,120650.0,0.02395202]
[1755174081088,1.78429189,120660.0,120650.0,0.02395211]
[1755174083404,0.99585189,120660.0,120650.0,0.04772211]
[1755174083598,1.78405189,120660.0,120650.0,0.04772211]
[1755174084700,2.49585189,120660.0,120650.0,0.14463211]
[1755174084901,2.49585309,120660.0,120650.0,0.22747871]
[1755174085098,2.49585309,120660.0,120650.0,0.14463211]
[1755174088407,2.48777141,120660.0,120650.0,0.14463211]
[1755174090303,2.48777141,120660.0,120650.0,0.13059211]
[1755174090506,2.00105825,120660.0,120650.0,0.13059211]
[1755174090708,2.48777141,120660.0,120650.0,0.13059211]
[1755174090910,2.48777141,120660.0,120610.0,0.3608]
[1755174090911,0.0828674,120620.0,120610.0,0.3608]
[1755174091105,0.0828743,120610.0,120600.0,0.06216]
[1755174091305,0.55611573,120610.0,120600.0,0.06216]
[1755174091502,0.06940257,120610.0,120600.0,0.04812]
[1755174091702,0.55611573,120610.0,120600.0,0.07258]
[1755174091905,0.55611573,120610.0,120600.0,0.05845692]
[1755174091906,0.9254291,120610.0,120600.0,0.05845692]
[1755174092107,0.91691573,120610.0,120600.0,0.03285692]
[1755174092302,0.99979313,120610.0,120590.0,0.1657726]
[1755174092506,0.48671316,120600.0,120590.0,0.9901381]
[1755174093115,0.99979313,120610.0,120600.0,0.02946]
[1755174093411,0.99979313,120610.0,120590.0,1.0345422]
[1755174093412,0.04361,120580.0,120570.0,0.3280714]
[1755174093714,0.53032316,120580.0,120570.0,0.3280714]
[1755174093910,0.02607,120580.0,120570.0,1.1137114]
[1755174094114,0.04361,120580.0,120570.0,1.1135914]
[1755174094320,0.53032316,120580.0,120570.0,1.1142714]
[1755174094707,0.53032316,120580.0,120570.0,1.1141514]
[1755174095214,0.07308,120580.0,120570.0,0.08337]
[1755174095414,0.64368816,120580.0,120570.0,0.89691]
[1755174095616,0.64368816,120580.0,120570.0,0.89747]
[1755174095920,1.00448816,120580.0,120570.0,0.90951]
[1755174096113,0.92159316,120580.0,120570.0,0.2057718]
[1755174096312,0.92159316,120580.0,120570.0,0.9924118]
[1755174096708,0.98162806,120580.0,120570.0,0.005]
[1755174096920,1.00448806,120580.0,120570.0,0.86461]
[1755174097113,1.00448806,120580.0,120570.0,0.12637]
[1755174097417,1.00448806,120580.0,120570.0,0.91269]
[1755174098015,1.00448806,120580.0,120570.0,0.005]
[1755174099319,1.5,120570.0,120560.0,0.6583092]
[1755174099616,0.86355316,120580.0,120560.0,0.7064292]
[1755174099821,0.89844316,120580.0,120570.0,0.1561517]
[1755174100017,2.48133796,120580.0,120570.0,0.05921]
[1755174100312,2.48133796,120580.0,120560.0,0.78616]
[1755174100313,0.1458716,120570.0,120560.0,0.78616]
[1755174100518,0.01612,120570.0,120560.0,0.2042785]
[1755174100713,0.0369,120550.0,120530.0,0.53665]
[1755174100919,0.54968316,120540.0,120530.0,0.47813]
[1755174101109,0.04011,120540.0,120530.0,1.3613792]
[1755174101417,0.04011,120540.0,120530.0,0.01]
[1755174101418,0.60653526,120540.0,120530.0,0.01]
[1755174101716,0.96733526,120540.0,120530.0,0.01]
[1755174101915,0.96733526,120540.0,120530.0,0.012]
[1755174102313,1.92851789,120540.0,120530.0,0.012]
[1755174102513,1.76358988,120540.0,120530.0,0.013]
[1755174102718,0.97666988,120540.0,120530.0,0.011]
[1755174102917,1.76454988,120540.0,120530.0,0.02696305]
[1755174103216,0.97766988,120540.0,120530.0,0.02696305]
[1755174103417,1.76366988,120540.0,120530.0,0.02696305]
[1755174103922,1.76266988,120540.0,120530.0,0.02596305]
[1755174104214,0.97966978,120540.0,120530.0,0.02696305]
[1755174104413,1.76554978,120540.0,120530.0,0.02696305]
[1755174104721,1.76454978,120540.0,120530.0,0.02596305]
[1755174105218,1.76454978,120540.0,120530.0,0.02596316]
[1755174105610,1.79069978,120540.0,120530.0,0.02596316]
[1755174106315,0.01104,120510.0,120500.0,0.3608]
[1755174106521,0.50770316,120510.0,120500.0,0.42553]
[1755174106721,0.50770316,120510.0,120500.0,1.2943195]
[1755174106908,0.02099,120510.0,120500.0,0.4841495]
[1755174107113,0.50770316,120510.0,120500.0,0.38526]
[1755174107314,0.50770316,120510.0,120500.0,0.02446]
[1755174107510,0.01104,120520.0,120510.0,0.0385]
[1755174107716,0.01104,120520.0,120510.0,0.07325]
[1755174107918,0.58068886,120520.0,120510.0,0.07325]
[1755174108117,0.49775316,120520.0,120510.0,0.07325]
[1755174108411,0.01104,120520.0,120510.0,0.07325]
[1755174108619,0.94148176,120530.0,120520.0,0.07325]
[1755174108924,0.94148176,120530.0,120520.0,0.02446]
[1755174109122,0.01204,120520.0,120510.0,0.02846]
[1755174109316,0.48771316,120520.0,120510.0,0.9463922]
[1755174109522,0.01204,120520.0,120510.0,0.9463922]
[1755174109720,0.01204,120520.0,120510.0,0.07725]
[1755174109915,0.49875316,120520.0,120510.0,0.86337]
[1755174110318,0.49875316,120520.0,120510.0,0.1601917]
[1755174110524,0.49875316,120520.0,120510.0,0.86325]
[1755174110830,0.84951316,120530.0,120510.0,1.0251315]
[1755174111023,0.002,120530.0,120520.0,0.1561849]
[1755174111327,0.4437065,120560.0,120540.0,0.07325]
[1755174111520,0.85855316,120560.0,120550.0,0.07325]
[1755174111725,0.3608,120560.0,120550.0,0.07325]
[1755174112023,0.84751316,120560.0,120550.0,0.07325]
[1755174112220,0.94145936,120560.0,120550.0,0.07325]
[1755174112614,0.3608,120560.0,120550.0,0.1569631]
[1755174112816,0.87539902,120590.0,120570.0,0.082898]
[1755174113120,0.01684586,120590.0,120580.0,0.07325]
[1755174113319,0.84751316,120610.0,120590.0,0.07325]
[1755174113519,0.48671316,120630.0,120610.0,0.02526]
[1755174113719,0.48671316,120630.0,120620.0,0.07325]
[1755174113720,0.85855316,120630.0,120620.0,0.07325]
[1755174114118,0.3608,120630.0,120620.0,0.06825]
[1755174114317,0.3608,120650.0,120640.0,0.03947]
[1755174114622,0.01604,120660.0,120650.0,0.03547]
[1755174115027,0.3608,120670.0,120650.0,0.03547]
[1755174115221,0.37734791,120680.0,120670.0,0.02456]
[1755174115426,0.01654791,120680.0,120670.0,0.02456]
[1755174115723,0.38008,120690.0,120670.0,0.9690582]
[1755174115925,0.3608,120690.0,120670.0,0.1656588]
[1755174116226,0.85251316,120690.0,120670.0,0.1985665]
[1755174116426,0.37508,120720.0,120690.0,0.2484417]
[1755174116723,0.50599316,120700.0,120690.0,0.78944]
[1755174116926,0.50599316,120700.0,120680.0,0.2633769]
[1755174117126,0.48671316,120690.0,120680.0,0.1775539]
[1755174117327,0.48671316,120690.0,120680.0,1.3606639]
[1755174117530,0.50599316,120700.0,120690.0,0.01491]
[1755174117829,0.50599316,120700.0,120690.0,0.85958]
[1755174118321,0.52199316,120700.0,120690.0,0.01956]
[1755174118529,0.52199316,120700.0,120690.0,0.80864]
[1755174118722,0.1020963,120690.0,120680.0,0.001]
[1755174118915,0.96760946,120690.0,120680.0,0.001]
[1755174119125,0.39808,120690.0,120680.0,0.78992]
[1755174119334,0.88479316,120690.0,120680.0,0.001]
[1755174119525,0.3608,120700.0,120690.0,0.03291]
[1755174119830,0.93532256,120700.0,120690.0,0.04782]
[1755174120035,0.93532256,120700.0,120690.0,0.8363]
[1755174120036,0.94960256,120700.0,120690.0,0.8363]
[1755174120222,0.0828163,120690.0,120680.0,0.3608]
[1755174120421,0.58880946,120690.0,120680.0,1.18207]
[1755174120619,0.3638,120700.0,120680.0,0.40862]
[1755174120820,0.003,120700.0,120690.0,0.8607]
[1755174121126,0.003,120700.0,120690.0,0.43318]
[1755174121323,0.3608,120730.0,120700.0,0.1073672]
[1755174121629,0.93030186,120730.0,120720.0,0.07238]
[1755174121822,0.95258186,120730.0,120720.0,0.07038]
[1755174122023,0.38308,120730.0,120720.0,0.07038]
[1755174122327,0.3608,120730.0,120720.0,0.07038]
[1755174122521,0.46028942,120740.0,120720.0,0.85858]
[1755174122723,0.1070756,120720.0,120700.0,0.3608]
[1755174122922,0.52899316,120710.0,120700.0,0.38536]
[1755174123126,0.48671316,120720.0,120710.0,0.03947]
[1755174123428,0.75937556,120730.0,120720.0,0.02456]
[1755174123630,1.12017556,120730.0,120720.0,0.02456]
[1755174123833,1.12017556,120730.0,120720.0,0.02556]
[1755174124032,0.01,120730.0,120720.0,0.07338]
[1755174124236,0.0827887,120730.0,120720.0,0.80463]
[1755174124528,0.5506518,120740.0,120730.0,0.01491]
[1755174124720,0.57949866,120740.0,120730.0,0.07238]
[1755174124921,0.61177866,120740.0,120730.0,0.05747]
[1755174125218,0.48671316,120740.0,120730.0,0.86122]
[1755174125419,0.02428,120760.0,120750.0,0.07238]
[1755174125619,0.51099316,120760.0,120750.0,0.07238]
[1755174125825,0.0927818,120740.0,120730.0,0.07238]
[1755174126035,0.59377496,120740.0,120730.0,0.86238]
[1755174126531,0.59377496,120740.0,120730.0,0.8623]
[1755174126734,0.61177496,120740.0,120730.0,0.02856]
[1755174127028,0.61177496,120740.0,120730.0,0.004]
[1755174127228,0.61177496,120740.0,120730.0,0.79428]
[1755174127430,0.02428,120740.0,120730.0,0.07638]
[1755174127628,0.4435787,120750.0,120740.0,0.07238]
[1755174127932,0.02428,120760.0,120750.0,0.07238]
[1755174128237,0.01,120760.0,120750.0,0.86262]
[1755174128423,0.93028126,120760.0,120750.0,0.01491]
[1755174128624,0.2726168,120750.0,120740.0,0.80507]
[1755174128825,0.1070619,120740.0,120730.0,0.02091]
[1755174129034,0.97257506,120740.0,120730.0,0.03056]
[1755174129228,0.97257506,120740.0,120730.0,0.006]
[1755174129432,0.97337506,120740.0,120730.0,0.005]
[1755174129727,0.0828093,120700.0,120690.0,0.05747]
[1755174129927,0.0828162,120690.0,120680.0,0.82367]
[1755174130130,0.96760936,120690.0,120680.0,0.02456]
[1755174130431,0.2857603,120680.0,120670.0,0.81528]
[1755174130629,0.72098067,120680.0,120670.0,0.79072]
[1755174130827,0.72098067,120680.0,120660.0,1.53915]
[1755174130828,0.1021098,120670.0,120660.0,0.84851]
[1755174131028,0.4809098,120670.0,120660.0,0.02456]
[1755174131337,0.285801,120660.0,120650.0,0.02456]
[1755174131522,1.08182137,120660.0,120650.0,0.02456]
[1755174131924,1.08182137,120660.0,120640.0,0.82381087]
[1755174131925,0.0828436,120650.0,120640.0,0.82381087]
[1755174132132,0.1021236,120650.0,120640.0,0.84837087]
[1755174132724,0.97597807,120660.0,120650.0,0.01491]
[1755174132928,0.5457469,120670.0,120660.0,0.07238]
[1755174133129,0.462906,120680.0,120670.0,0.05747]
[1755174133326,0.4628995,120690.0,120680.0,0.02456]
[1755174133527,0.89811987,120690.0,120680.0,0.05747]
[1755174133729,0.91611987,120690.0,120680.0,0.02456]
[1755174134128,0.0828229,120680.0,120670.0,0.3608]
[1755174134326,0.1021029,120680.0,120670.0,1.18028]
[1755174134526,0.1021029,120680.0,120670.0,1.21319]
[1755174134829,1.06376437,120690.0,120680.0,0.06247]
[1755174135032,0.98094167,120690.0,120680.0,0.06247]
[1755174135534,0.005,120700.0,120690.0,0.07238]
[1755174135736,0.01928,120700.0,120690.0,0.07238]
[1755174136227,0.005,120700.0,120690.0,0.07238]
[1755174136929,0.81530037,120710.0,120700.0,0.05747]
[1755174137134,0.45450037,120710.0,120700.0,0.86234]
[1755174137328,0.43522037,120710.0,120700.0,0.07238]
[1755174137532,0.38238221,120720.0,120710.0,0.07238]
[1755174137935,0.03586221,120720.0,120710.0,0.07238]
[1755174138331,0.03586221,120720.0,120710.0,0.05747]
[1755174138537,0.03586221,120720.0,120710.0,0.02456]
[1755174138538,0.05386221,120720.0,120710.0,0.02456]
[1755174139734,0.05386221,120720.0,120710.0,0.02556]
[1755174140039,0.48908258,120720.0,120710.0,0.02756]
[1755174140232,0.57187788,120720.0,120710.0,0.02756]
[1755174140438,0.93267788,120720.0,120710.0,0.003]
[1755174140630,0.49745751,120720.0,120710.0,0.003]
[1755174140827,0.03586221,120720.0,120710.0,0.06047]
[1755174141034,0.03586221,120720.0,120710.0,0.07538]
[1755174141334,0.10437771,120720.0,120710.0,0.86434]
[1755174141530,0.10437771,120720.0,120710.0,0.06047]
[1755174141731,0.4808755,120720.0,120710.0,0.003]
[1755174142334,0.0828092,120700.0,120690.0,0.02456]
[1755174142543,0.0828229,120680.0,120670.0,1.55414]
[1755174142741,0.005,120680.0,120670.0,0.40862]
[1755174142934,0.005,120680.0,120670.0,1.22186]
[1755174143129,0.1949137,120690.0,120670.0,1.22186]
[1755174143130,0.0970963,120690.0,120670.0,1.22186]
[1755174143440,0.3608,120700.0,120690.0,0.07538]
[1755174143640,0.81530037,120710.0,120700.0,0.05747]
[1755174143936,0.38008,120710.0,120700.0,0.07238]
[1755174144140,0.01861,120720.0,120710.0,0.02409]
[1755174144344,0.01861,120720.0,120710.0,0.07008]
[1755174144545,0.0877956,120720.0,120710.0,0.85856]
[1755174144740,0.1014056,120720.0,120710.0,0.84423]
[1755174146444,0.1014056,120720.0,120710.0,0.85856]
[1755174146840,0.97820304,120730.0,120710.0,0.85856]
[1755174147144,0.46019137,120730.0,120720.0,0.07008]
[1755174147446,0.92902174,120730.0,120720.0,0.81225]
[1755174147840,0.46019137,120730.0,120720.0,0.85824]
[1755174148241,0.46119137,120730.0,120720.0,0.07008]
[1755174148439,0.46119137,120730.0,120720.0,0.85788]
[1755174149239,0.01760257,120730.0,120720.0,0.07008]
[1755174149442,0.01760257,120730.0,120720.0,0.8598]
[1755174149747,0.082782,120740.0,120730.0,0.07008]
[1755174149942,0.082782,120740.0,120730.0,0.85956]
[1755174150246,1.06296807,120750.0,120740.0,0.07008]
[1755174150641,0.93478198,120750.0,120740.0,0.07008]
[1755174150839,0.0827751,120750.0,120740.0,0.07008]
[1755174151139,1.10032178,120760.0,120750.0,0.06908]
[1755174151339,0.6277252,120760.0,120750.0,0.85772]
[1755174151532,1.11393178,120760.0,120750.0,0.85772]
[1755174155746,0.84700658,120760.0,120750.0,0.06808]
[1755174156056,0.92977508,120760.0,120750.0,0.85656]
[1755174156239,0.4435685,120760.0,120750.0,0.85656]
[1755174156751,1.20183422,120770.0,120750.0,0.85656]
[1755174156940,0.72923764,120770.0,120750.0,0.80281]
[1755174157252,0.72923764,120770.0,120760.0,0.03842]
[1755174157545,0.72923764,120770.0,120760.0,0.07008]
[1755174158048,0.48093334,120770.0,120760.0,0.85836]
[1755174158251,0.96713992,120770.0,120760.0,0.85836]
[1755174158841,0.48093334,120770.0,120760.0,0.85796]
[1755174159049,0.96713992,120770.0,120760.0,0.85796]
[1755174159351,0.88537692,120770.0,120760.0,0.85796]
[1755174159552,0.96813872,120770.0,120760.0,0.85776]
[1755174160548,0.96813872,120770.0,120760.0,0.85772]
[1755174160742,0.98313872,120770.0,120760.0,0.81173]
[1755174160943,0.96813872,120770.0,120760.0,0.07008]
[1755174161147,0.96813872,120770.0,120760.0,0.8582]
[1755174161844,0.96813872,120770.0,120760.0,0.85816]
[1755174162349,0.96813872,120770.0,120760.0,0.07008]
[1755174162745,0.02061,120750.0,120740.0,0.1144424]
[1755174162940,0.2633188,120760.0,120740.0,0.1287724]
[1755174162941,0.38941,120760.0,120740.0,0.1287724]
[1755174163155,0.96813872,120770.0,120760.0,0.04599]
[1755174163354,0.96813872,120770.0,120760.0,0.85856]
[1755174163551,0.96813872,120770.0,120760.0,0.85892]
[1755174164154,0.96713872,120770.0,120760.0,0.85892]
[1755174164352,0.03214,120800.0,120790.0,0.03166]
[1755174164649,0.04575,120800.0,120790.0,0.07008]
[1755174164851,0.06989,120800.0,120790.0,0.07008]
[1755174165058,0.06989,120800.0,120790.0,0.43088]
[1755174165656,0.06989,120800.0,120790.0,1.2186]
[1755174165953,0.43069,120820.0,120810.0,0.02409]
[1755174166154,0.06989,120820.0,120810.0,0.121155]
[1755174166356,0.08677802,120840.0,120820.0,0.03842]
[1755174166656,0.07822057,120840.0,120830.0,0.03842]
[1755174166848,0.16093507,120840.0,120830.0,0.03842]
[1755174167049,0.72986255,120840.0,120820.0,1.15268]
[1755174167359,0.63881788,120830.0,120820.0,0.02409]
[1755174167551,0.07089,120820.0,120810.0,0.39922]
[1755174167857,0.04675,120820.0,120810.0,1.305135]
[1755174168466,0.001,120820.0,120810.0,1.79118158]
[1755174168758,0.001,120820.0,120810.0,1.79106158]
[1755174169548,0.3200409,120840.0,120820.0,0.07008]
[1755174169757,0.154605,120840.0,120830.0,0.05575]
[1755174169955,0.154605,120840.0,120830.0,0.07008]
[1755174170147,0.152605,120840.0,120830.0,0.07008]
[1755174171861,0.1546045,120840.0,120830.0,0.07008]
[1755174172061,0.1324645,120840.0,120830.0,0.86008]
[1755174172259,0.03614,120840.0,120830.0,1.22088]
[1755174172465,0.0847145,120840.0,120830.0,0.43088]
[1755174172760,0.004,120840.0,120830.0,0.43088]
[1755174172963,0.004,120840.0,120830.0,1.36531988]
[1755174173150,0.004,120840.0,120830.0,1.70668658]
[1755174173348,0.004,120840.0,120830.0,0.5136013]
[1755174173552,0.004,120840.0,120830.0,1.3031213]
[1755174173761,0.004,120840.0,120830.0,1.2204]
[1755174173962,0.004,120840.0,120830.0,1.22032]
[1755174174553,0.004,120840.0,120830.0,0.43088]
[1755174174753,0.004,120840.0,120830.0,1.3028013]
[1755174175150,0.3608,120870.0,120860.0,0.0827012]
[1755174175366,0.1653733,120890.0,120880.0,0.07]
[1755174175559,0.2358733,120890.0,120880.0,0.0234]
[1755174175759,1.7358733,120890.0,120880.0,0.0234]
[1755174175957,0.2358961,120870.0,120860.0,0.05614]
[1755174176258,0.1531979,120870.0,120860.0,0.05614]
[1755174176459,0.153201,120860.0,120850.0,1.21992]
[1755174176659,0.153201,120860.0,120850.0,0.4308]
[1755174176859,0.2398962,120870.0,120860.0,0.0466]
[1755174177060,0.2398962,120870.0,120860.0,0.07]
[1755174177262,0.1571979,120870.0,120860.0,0.07]
[1755174177459,0.0745,120870.0,120860.0,0.07]
[1755174177657,0.004,120870.0,120860.0,0.99970758]
[1755174178166,1.6531841,120890.0,120880.0,0.07]
[1755174178352,0.0826941,120870.0,120860.0,0.4308]
[1755174178558,0.0705,120870.0,120860.0,0.4308]
[1755174178760,0.1531941,120870.0,120860.0,0.85876]
[1755174178958,0.63940068,120870.0,120860.0,0.07]
[1755174179266,0.63940068,120870.0,120860.0,0.8447]
[1755174179562,0.56890068,120870.0,120860.0,0.05614]
[1755174179864,0.0705,120870.0,120860.0,0.07]
[1755174180064,0.0705,120870.0,120860.0,0.4328]
[1755174180254,0.1303641,120870.0,120860.0,0.4328]
[1755174180455,0.04767,120870.0,120860.0,0.4328]
[1755174180661,0.40847,120880.0,120870.0,0.07]
[1755174180863,1.5715,120890.0,120880.0,0.07]
[1755174181064,1.53491,120890.0,120880.0,0.4308]
[1755174181260,1.6313503,120890.0,120880.0,1.219]
[1755174181461,1.6531803,120890.0,120880.0,0.07]
[1755174181867,1.6531804,120890.0,120880.0,0.07]
[1755174182160,0.1531941,120870.0,120860.0,0.4308]
[1755174182364,0.0705,120870.0,120860.0,1.21876]
[1755174182562,0.02283,120870.0,120860.0,0.5135012]
[1755174182865,0.2130511,120880.0,120870.0,0.07]
[1755174183670,0.72208768,120880.0,120870.0,0.78892]
[1755174183864,0.1531946,120870.0,120860.0,0.05714]
[1755174184066,0.63940118,120870.0,120860.0,0.0244]
[1755174184379,1.00100118,120870.0,120860.0,0.001]
[1755174184664,1.79036118,120870.0,120860.0,0.001]
[1755174184854,1.00020118,120870.0,120860.0,0.001]
[1755174185058,1.78972118,120870.0,120860.0,0.001]
[1755174185255,1.00020118,120870.0,120860.0,0.001]
[1755174185470,0.5139946,120870.0,120860.0,0.071]
[1755174185665,0.0826947,120870.0,120860.0,0.071]
[1755174185862,0.0964547,120870.0,120860.0,0.07]
[1755174186062,0.63940128,120870.0,120860.0,0.0234]
[1755174186269,0.1192916,120860.0,120850.0,0.05614]
[1755174186465,0.1532016,120860.0,120850.0,0.9281685]
[1755174186772,0.1532016,120860.0,120850.0,0.85932]
[1755174186974,0.1303853,120840.0,120830.0,0.4308]
[1755174187167,0.48620658,120840.0,120830.0,0.3608]
[1755174187372,0.4435016,120860.0,120850.0,0.05614]
[1755174187373,0.5140016,120860.0,120850.0,0.05614]
[1755174187676,0.3608,120860.0,120850.0,0.1527085]
[1755174187867,0.4313,120880.0,120860.0,0.2353995]
[1755174188170,0.04767,120880.0,120870.0,0.1526948]
[1755174188674,0.1303579,120880.0,120870.0,0.86]
[1755174188973,1.8608,120890.0,120880.0,0.1526879]
[1755174189179,1.9434811,120890.0,120880.0,0.069]
[1755174189362,2.50018768,120890.0,120880.0,0.05514]
[1755174189568,1.5705,120890.0,120880.0,0.1506879]
[1755174189972,1.5705,120890.0,120880.0,0.068]
[1755174190163,1.6531811,120890.0,120880.0,0.068]
[1755174190369,1.5715,120890.0,120880.0,0.068]
[1755174191167,1.5715,120890.0,120880.0,0.1506883]
[1755174191370,1.501,120890.0,120880.0,1.78749488]
[1755174191571,0.001,120890.0,120880.0,0.5114883]
[1755174191972,0.001,120890.0,120880.0,1.3011683]
[1755174192273,0.002,120890.0,120880.0,1.78733488]
[1755174192667,0.40855,120920.0,120910.0,0.0234]
[1755174192877,8e-05,120920.0,120910.0,0.1526677]
[1755174193176,8e-05,120920.0,120910.0,1.3026677]
[1755174193673,8e-05,120920.0,120910.0,1.16588228]